fUST/lending_fUST_20250729
["ID","MTS","AMOUNT","RATE_DAILY","PERIOD"]
[375863943,1753764661427,-460.0,0.00022739,2]
[375863944,1753764661436,-1425.95,0.00022739,2]
[375863945,1753764661445,-551.56,0.00022739,2]
[375863946,1753764661456,-460.0,0.00022739,2]
[375863947,1753764661466,-521.32737297,0.00022739,2]
[375863948,1753764661476,-460.0,0.00022739,2]
[375863949,1753764661487,-4145.08,0.00022739,2]
[375863950,1753764661497,-561.7,0.00022739,2]
[375863951,1753764661506,-460.0,0.00022739,2]
[375863952,1753764661515,-649.62,0.00022739,2]
[375863953,1753764661525,-587.0,0.0002277,2]
[375863954,1753764661535,-500.9491733,0.0002279,8]
[375863955,1753764661544,-500.0,0.0002279,8]
[375863956,1753764661554,-154.373696,0.00022841,2]
[375863957,1753764661563,-208.0,0.000229,6]
[375863958,1753764661573,-25108.42290397,0.00023,2]
[375863959,1753764661582,-1337.60374116,0.00023,2]
[375863960,1753764661592,-231.34820253,0.00023,3]
[375863961,1753764661601,-1285.87,0.00023,2]
[375863962,1753764661611,-160.0,0.00023,3]
[375863963,1753764661620,-216.1031716,0.00023,3]
[375863964,1753764661630,-151.0,0.00023,7]
[375863965,1753764661639,-151.0,0.00023,7]
[375863966,1753764661649,-180.427728,0.00023,7]
[375863967,1753764661659,-180.427728,0.00023,7]
[375863968,1753764661668,-151.0,0.00023,7]
[375863969,1753764661678,-151.0,0.00023,7]
[375863970,1753764661687,-151.0,0.00023,7]
[375863971,1753764661697,-151.0,0.00023,7]
[375863972,1753764661707,-151.0,0.00023,7]
[375863973,1753764661717,-233.653696,0.00023,7]
[375863974,1753764661726,-233.653696,0.00023,7]
[375863975,1753764661736,-151.0,0.00023,7]
[375863976,1753764661746,-4234.44779273,0.00023,2]
[375863977,1753764661756,-151.0,0.00023,7]
[375863978,1753764661766,-155.0,0.00023,2]
[375863979,1753764661776,-160.0,0.00023,2]
[375863980,1753764661792,-192.98117,0.00023,7]
[375863981,1753764661803,-151.0,0.00023,7]
[375863982,1753764661813,-192.98117,0.00023,7]
[375863983,1753764661823,-151.0,0.00023,7]
[375863984,1753764661833,-151.0,0.00023,7]
[375863985,1753764661842,-151.0,0.00023,7]
[375863986,1753764661852,-174.176206,0.00023,7]
[375863987,1753764661864,-486.47,0.00023013,2]
[375863988,1753764661875,-539.9,0.00023013,2]
[375863989,1753764661886,-460.0,0.00023013,2]
[375863990,1753764661896,-3128.07,0.00023013,2]
[375863991,1753764661905,-1169.85,0.00023013,2]
[375863992,1753764661915,-492.68,0.00023013,2]
[375863993,1753764661926,-1149.81,0.00023013,2]
[375863994,1753764661945,-460.0,0.00023013,2]
[375863995,1753764661964,-460.0,0.00023013,2]
[375863996,1753764661973,-523.03,0.00023013,2]
[375863997,1753764661984,-1909.47,0.00023013,2]
[375863998,1753764661993,-1316.19,0.00023013,2]
[375863999,1753764662002,-583.46,0.00023013,2]
[375864000,1753764662013,-460.0,0.00023013,2]
[375864001,1753764662022,-537.89,0.00023013,2]
[375864002,1753764662031,-652.33,0.00023013,2]
[375864003,1753764662042,-1679.17,0.00023013,2]
[375864004,1753764662052,-557.66,0.00023013,2]
[375864005,1753764662062,-1048.64,0.00023013,2]
[375864006,1753764662072,-460.0,0.00023013,2]
[375864007,1753764662082,-460.0,0.00023013,2]
[375864008,1753764662092,-255.15181649,0.00023013,2]
[375864009,1753764662102,-504.22,0.00023013,2]
[375864010,1753764662113,-460.0,0.00023013,2]
[375864011,1753764662123,-460.0,0.00023013,2]
[375864012,1753764662134,-1125.68,0.00023013,2]
[375864013,1753764662146,-1269.69,0.00023013,2]
[375864014,1753764662157,-1596.9,0.00023013,2]
[375864015,1753764662166,-1093.2,0.00023013,2]
[375864016,1753764662175,-901.92,0.00023013,2]
[375864017,1753764662186,-460.0,0.00023013,2]
[375864018,1753764662196,-220.84860898,0.00023013,2]
[375864019,1753764662205,-460.0,0.00023013,2]
[375864020,1753764662215,-1425.95,0.00023013,2]
[375864021,1753764662224,-551.56,0.00023013,2]
[375864022,1753764662233,-460.0,0.00023013,2]
[375864023,1753764662242,-601.07567907,0.00023013,2]
[375864024,1753764662252,-4145.08,0.00023013,2]
[375864025,1753764662262,-561.7,0.00023013,2]
[375864026,1753764662272,-460.0,0.00023013,2]
[375864027,1753764662281,-649.62,0.00023013,2]
[375864028,1753764662290,-2001.0083313,0.00023025,2]
[375864029,1753764662300,-160.0,0.00023076,14]
[375864030,1753764662310,-163.3210061,0.00023076,5]
[375864031,1753764662319,-160.0,0.00023076,8]
[375864032,1753764662329,-160.0,0.00023076,5]
[375864033,1753764662339,-695.6,0.00023152,5]
[375864034,1753764662348,-206.0,0.0002316,2]
[375864035,1753764662359,-486.47,0.00023287,2]
[375864036,1753764662368,-539.9,0.00023287,2]
[375864037,1753764662377,-460.0,0.00023287,2]
[375864038,1753764662387,-3128.07,0.00023287,2]
[375864039,1753764662396,-286.64870616,0.00023287,2]
[375864040,1753764662406,-1169.85,0.00023287,2]
[375864041,1753764662415,-492.68,0.00023287,2]
[375864042,1753764662425,-1149.81,0.00023287,2]
[375864043,1753764662435,-460.0,0.00023287,2]
[375864044,1753764662444,-460.0,0.00023287,2]
[375864045,1753764662453,-1909.47,0.00023287,2]
[375864046,1753764662463,-1316.19,0.00023287,2]
[375864047,1753764662473,-583.46,0.00023287,2]
[375864048,1753764662484,-460.0,0.00023287,2]
[375864049,1753764662494,-537.89,0.00023287,2]
[375864050,1753764662503,-652.33,0.00023287,2]
[375864051,1753764662514,-1679.17,0.00023287,2]
[375864052,1753764662523,-557.66,0.00023287,2]
[375864053,1753764662533,-1048.64,0.00023287,2]
[375864054,1753764662543,-460.0,0.00023287,2]
[375864055,1753764662553,-460.0,0.00023287,2]
[375864056,1753764662563,-504.22,0.00023287,2]
[375864057,1753764662573,-460.0,0.00023287,2]
[375864058,1753764662583,-331.39855274,0.00023287,2]
[375864059,1753764662594,-1125.68,0.00023287,2]
[375864060,1753764662603,-1269.69,0.00023287,2]
[375864061,1753764662613,-1596.9,0.00023287,2]
[375864062,1753764662623,-1093.2,0.00023287,2]
[375864063,1753764662632,-901.92,0.00023287,2]
[375864064,1753764662641,-460.0,0.00023287,2]
[375864065,1753764662651,-460.0,0.00023287,2]
[375864066,1753764662660,-1425.95,0.00023287,2]
[375864067,1753764662670,-551.56,0.00023287,2]
[375864068,1753764662679,-334.08469667,0.00023287,2]
[375864069,1753764662689,-4145.08,0.00023287,2]
[375864070,1753764662699,-561.7,0.00023287,2]
[375864071,1753764662708,-460.0,0.00023287,2]
[375864072,1753764662718,-649.62,0.00023287,2]
[375864073,1753764662727,-154.373696,0.00023325,6]
[375864074,1753764662737,-5000.0,0.00023386,2]
[375864075,1753764662746,-1126.60340077,0.000234,2]
[375864076,1753764662756,-21687.28,0.000234,2]
[375864077,1753764662765,-154.373696,0.00023431,2]
[375864078,1753764662775,-772.4,0.000235,7]
[375864079,1753764662788,-5393.88,0.000235,7]
[375864080,1753764662797,-1628.74,0.000235,7]
[375864081,1753764662807,-155.0,0.00023548,2]
[375864082,1753764662816,-154.373696,0.00023553,6]
[375864083,1753764662826,-206.0,0.0002356,2]
[375864084,1753764662836,-205.03628,0.00023561,7]
[375864085,1753764662846,-486.47,0.00023561,2]
[375864086,1753764662855,-539.9,0.00023561,2]
[375864087,1753764662867,-460.0,0.00023561,2]
[375864088,1753764662876,-3128.07,0.00023561,2]
[375864089,1753764662885,-1169.85,0.00023561,2]
[375864090,1753764662894,-492.68,0.00023561,2]
[375864091,1753764662904,-1149.81,0.00023561,2]
[375864092,1753764662913,-460.0,0.00023561,2]
[375864093,1753764662922,-460.0,0.00023561,2]
[375864094,1753764662931,-1909.47,0.00023561,2]
[375864095,1753764662940,-1316.19,0.00023561,2]
[375864096,1753764662950,-583.46,0.00023561,2]
[375864097,1753764662959,-576.28491178,0.00023561,2]
[375864098,1753764662969,-537.89,0.00023561,2]
[375864099,1753764662979,-652.33,0.00023561,2]
[375864100,1753764662992,-1679.17,0.00023561,2]
[375864101,1753764663001,-557.66,0.00023561,2]
[375864102,1753764663012,-1048.64,0.00023561,2]
[375864103,1753764663023,-460.0,0.00023561,2]
[375864104,1753764663033,-460.0,0.00023561,2]
[375864105,1753764663043,-504.22,0.00023561,2]
[375864106,1753764663053,-460.0,0.00023561,2]
[375864107,1753764663063,-1125.68,0.00023561,2]
[375864108,1753764663072,-1269.69,0.00023561,2]
[375864109,1753764663082,-1596.9,0.00023561,2]
[375864110,1753764663091,-1093.2,0.00023561,2]
[375864111,1753764663101,-901.92,0.00023561,2]
[375864112,1753764663111,-460.0,0.00023561,2]
[375864113,1753764663120,-460.0,0.00023561,2]
[375864114,1753764663130,-1425.95,0.00023561,2]
[375864115,1753764663139,-551.56,0.00023561,2]
[375864116,1753764663150,-4145.08,0.00023561,2]
[375864117,1753764663160,-561.7,0.00023561,2]
[375864118,1753764663169,-460.0,0.00023561,2]
[375864119,1753764663179,-649.62,0.00023561,2]
[375864120,1753764663188,-2001.0083313,0.00023567,2]
[375864121,1753764663198,-200.0,0.00023584,15]
[375864122,1753764663207,-200.0,0.00023584,15]
[375864123,1753764663216,-200.0,0.00023584,15]
[375864124,1753764663225,-200.0,0.00023584,15]
[375864125,1753764663236,-200.0,0.00023584,15]
[375864126,1753764663246,-200.0,0.00023584,15]
[375864127,1753764663255,-366.0,0.00023584,15]
[375864128,1753764663266,-695.6,0.00023604,5]
[375864129,1753764663275,-500.0,0.00023622,2]
[375864130,1753764663285,-512.39,0.00023628,3]
[375864131,1753764663295,-512.42529984,0.00023652,3]
[375864132,1753764663304,-512.81,0.00023663,7]
[375864133,1753764663314,-512.39,0.00023728,4]
[375864134,1753764663323,-150.33522748,0.00023747,7]
[375864135,1753764663333,-512.81,0.00023763,7]
[375864136,1753764663342,-151.0,0.000238,7]
[375864137,1753764663351,-151.0,0.000238,7]
[375864138,1753764663361,-512.39,0.00023828,7]
[375864139,1753764663370,-151.0,0.00023835,7]
[375864140,1753764663380,-154.61522,0.00023835,7]
[375864141,1753764663391,-486.47,0.00023835,2]
[375864142,1753764663400,-151.0,0.00023835,7]
[375864143,1753764663410,-539.9,0.00023835,2]
[375864144,1753764663419,-151.0,0.00023835,7]
[375864145,1753764663429,-460.0,0.00023835,2]
[375864146,1753764663438,-151.0,0.00023835,7]
[375864147,1753764663448,-3128.07,0.00023835,2]
[375864148,1753764663458,-1169.85,0.00023835,2]
[375864149,1753764663467,-151.0,0.00023835,7]
[375864150,1753764663476,-151.0,0.00023835,7]
[375864151,1753764663488,-151.0,0.00023835,7]
[375864152,1753764663498,-192.734262,0.00023835,7]
[375864153,1753764663509,-192.734262,0.00023835,7]
[375864154,1753764663519,-492.68,0.00023835,2]
[375864155,1753764663528,-151.0,0.00023835,7]
[375864156,1753764663538,-1149.81,0.00023835,2]
[375864157,1753764663548,-460.0,0.00023835,2]
[375864158,1753764663558,-460.0,0.00023835,2]
[375864159,1753764663568,-1909.47,0.00023835,2]
[375864160,1753764663577,-1316.19,0.00023835,2]
[375864161,1753764663586,-583.46,0.00023835,2]
[375864162,1753764663596,-151.0,0.00023835,7]
[375864163,1753764663605,-537.89,0.00023835,2]
[375864164,1753764663615,-652.33,0.00023835,2]
[375864165,1753764663625,-1679.17,0.00023835,2]
[375864166,1753764663634,-557.66,0.00023835,2]
[375864167,1753764663644,-151.0,0.00023835,7]
[375864168,1753764663654,-151.0,0.00023835,7]
[375864169,1753764663665,-1048.64,0.00023835,2]
[375864170,1753764663674,-665.756305,0.00023835,7]
[375864171,1753764663684,-460.0,0.00023835,2]
[375864172,1753764663694,-151.0,0.00023835,7]
[375864173,1753764663857,-665.756305,0.00023835,7]
[375864174,1753764663868,-460.0,0.00023835,2]
[375864175,1753764663879,-504.22,0.00023835,2]
[375864176,1753764663889,-460.0,0.00023835,2]
[375864177,1753764663899,-1125.68,0.00023835,2]
[375864178,1753764663909,-1269.69,0.00023835,2]
[375864179,1753764663919,-1596.9,0.00023835,2]
[375864180,1753764663928,-1093.2,0.00023835,2]
[375864181,1753764663938,-901.92,0.00023835,2]
[375864182,1753764663948,-460.0,0.00023835,2]
[375864183,1753764663958,-460.0,0.00023835,2]
[375864184,1753764663968,-1425.95,0.00023835,2]
[375864185,1753764663978,-551.56,0.00023835,2]
[375864186,1753764663990,-4145.08,0.00023835,2]
[375864187,1753764664000,-561.7,0.00023835,2]
[375864188,1753764664010,-460.0,0.00023835,2]
[375864189,1753764664020,-649.62,0.00023835,2]
[375864190,1753764664029,-512.81,0.00023863,6]
[375864191,1753764664039,-483.70091695,0.000239,2]
[375864192,1753764664048,-154.373696,0.00023928,3]
[375864193,1753764664060,-512.39,0.00023928,4]
[375864194,1753764664070,-206.0,0.0002396,2]
[375864195,1753764664079,-512.81,0.00023963,6]
[375864196,1753764664088,-160.0,0.00024,7]
[375864197,1753764664098,-160.0,0.00024,7]
[375864198,1753764664108,-160.0,0.00024,7]
[375864199,1753764664117,-216.1031716,0.00024,7]
[375864200,1753764664127,-157.19,0.00024,14]
[375864201,1753764664136,-230.579603,0.00024,7]
[375864202,1753764664145,-230.579603,0.00024,7]
[375864203,1753764664154,-512.39,0.00024028,4]
[375864204,1753764664163,-695.6,0.00024057,6]
[375864205,1753764664173,-512.81,0.00024063,3]
[375864206,1753764664183,-154.373696,0.00024082,3]
[375864207,1753764664193,-155.0,0.00024096,2]
[375864208,1753764664203,-2001.0083313,0.00024108,2]
[375864209,1753764664213,-151.0,0.00024109,7]
[375864210,1753764664223,-151.0,0.00024109,7]
[375864211,1753764664232,-151.0,0.00024109,7]
[375864212,1753764664244,-233.653696,0.00024109,7]
[375864213,1753764664253,-233.653696,0.00024109,7]
[375864214,1753764664262,-151.0,0.00024109,7]
[375864215,1753764664272,-486.47,0.00024109,2]
[375864216,1753764664281,-539.9,0.00024109,2]
[375864217,1753764664291,-591.1,0.00024109,2]
[375864218,1753764664300,-3128.07,0.00024109,2]
[375864219,1753764664310,-1169.85,0.00024109,2]
[375864220,1753764664320,-492.68,0.00024109,2]
[375864221,1753764664330,-1149.81,0.00024109,2]
[375864222,1753764664339,-460.0,0.00024109,2]
[375864223,1753764664349,-460.0,0.00024109,2]
[375864224,1753764664358,-1909.47,0.00024109,2]
[375864225,1753764664367,-1316.19,0.00024109,2]
[375864226,1753764664377,-583.46,0.00024109,2]
[375864227,1753764664387,-537.89,0.00024109,2]
[375864228,1753764664396,-652.33,0.00024109,2]
[375864229,1753764664406,-1679.17,0.00024109,2]
[375864230,1753764664415,-557.66,0.00024109,2]
[375864231,1753764664425,-1048.64,0.00024109,2]
[375864232,1753764664435,-460.0,0.00024109,2]
[375864233,1753764664444,-232.06933668,0.00024109,2]
[375864234,1753764664454,-504.22,0.00024109,2]
[375864235,1753764664464,-528.84340149,0.00024109,2]
[375864236,1753764664474,-1125.68,0.00024109,2]
[375864237,1753764664486,-1269.69,0.00024109,2]
[375864238,1753764664496,-1596.9,0.00024109,2]
[375864239,1753764664505,-1093.2,0.00024109,2]
[375864240,1753764664515,-901.92,0.00024109,2]
[375864241,1753764664525,-460.0,0.00024109,2]
[375864242,1753764664534,-460.0,0.00024109,2]
[375864243,1753764664544,-1425.95,0.00024109,2]
[375864244,1753764664553,-551.56,0.00024109,2]
[375864245,1753764664563,-4145.08,0.00024109,2]
[375864246,1753764664573,-561.7,0.00024109,2]
[375864247,1753764664582,-460.0,0.00024109,2]
[375864248,1753764664592,-649.62,0.00024109,2]
[375864249,1753764664601,-150.0,0.00024117,30]
[375864250,1753764664610,-154.373696,0.00024147,14]
[375864251,1753764664620,-512.81,0.00024163,4]
[375864252,1753764664629,-154.373696,0.00024237,3]
[375864253,1753764664639,-151.0,0.00024263,7]
[375864254,1753764664650,-512.83,0.00024263,7]
[375864255,1753764664660,-206.0,0.0002436,2]
[375864256,1753764664669,-180.427728,0.00024383,7]
[375864257,1753764664679,-180.427728,0.00024383,7]
[375864258,1753764664689,-486.47,0.00024383,2]
[375864259,1753764664699,-539.9,0.00024383,2]
[375864260,1753764664708,-3128.07,0.00024383,2]
[375864261,1753764664718,-1169.85,0.00024383,2]
[375864262,1753764664727,-492.68,0.00024383,2]
[375864263,1753764664738,-1149.81,0.00024383,2]
[375864264,1753764664747,-460.0,0.00024383,2]
[375864265,1753764664756,-460.0,0.00024383,2]
[375864266,1753764664766,-1909.47,0.00024383,2]
[375864267,1753764664775,-1316.19,0.00024383,2]
[375864268,1753764664788,-583.46,0.00024383,2]
[375864269,1753764664797,-537.89,0.00024383,2]
[375864270,1753764664807,-652.33,0.00024383,2]
[375864271,1753764664816,-1679.17,0.00024383,2]
[375864272,1753764664825,-557.66,0.00024383,2]
[375864273,1753764664836,-1048.64,0.00024383,2]
[375864274,1753764664846,-460.0,0.00024383,2]
[375864275,1753764664856,-504.22,0.00024383,2]
[375864276,1753764664866,-1125.68,0.00024383,2]
[375864277,1753764664876,-1269.69,0.00024383,2]
[375864278,1753764664885,-1596.9,0.00024383,2]
[375864279,1753764664894,-1093.2,0.00024383,2]
[375864280,1753764664904,-901.92,0.00024383,2]
[375864281,1753764664913,-460.0,0.00024383,2]
[375864282,1753764664923,-175.37067267,0.00024383,2]
[375864283,1753764664934,-1425.95,0.00024383,2]
[375864284,1753764664943,-551.56,0.00024383,2]
[375864285,1753764664954,-4145.08,0.00024383,2]
[375864286,1753764664964,-561.7,0.00024383,2]
[375864287,1753764664973,-176.0226097,0.00024383,2]
[375864288,1753764664983,-649.62,0.00024383,2]
[375864289,1753764664994,-1000.0,0.000244,2]
[375864290,1753764665004,-1000.0,0.000244,2]
[375864291,1753764665013,-1000.0,0.000244,2]
[375864292,1753764665022,-1000.0,0.000244,2]
[375864293,1753764665031,-1000.0,0.000244,2]
[375864294,1753764665041,-1000.0,0.000244,2]
[375864295,1753764665050,-1000.0,0.000244,2]
[375864296,1753764665059,-1000.0,0.000244,2]
[375864297,1753764665068,-1000.0,0.000244,2]
[375864298,1753764665077,-1000.0,0.000244,2]
[375864299,1753764665088,-1000.0,0.000244,2]
[375864300,1753764665097,-1000.0,0.000244,2]
[375864301,1753764665107,-1000.0,0.000244,2]
[375864302,1753764665116,-1000.0,0.000244,2]
[375864303,1753764665126,-1000.0,0.000244,2]
[375864304,1753764665135,-1000.0,0.000244,2]
[375864305,1753764665145,-1000.0,0.000244,2]
[375864306,1753764665154,-1000.0,0.000244,2]
[375864307,1753764665163,-1000.0,0.000244,2]
[375864308,1753764665172,-1000.0,0.000244,2]
[375864309,1753764665182,-1000.0,0.000244,2]
[375864310,1753764665191,-1000.0,0.000244,2]
[375864311,1753764665201,-1000.0,0.000244,2]
[375864312,1753764665211,-1000.0,0.000244,2]
[375864313,1753764665221,-1000.0,0.000244,2]
[375864314,1753764665231,-1000.0,0.000244,2]
[375864315,1753764665243,-1000.0,0.000244,2]
[375864316,1753764665252,-1000.0,0.000244,2]
[375864317,1753764665261,-1000.0,0.000244,2]
[375864318,1753764665270,-1000.0,0.000244,2]
[375864319,1753764665279,-1000.0,0.000244,2]
[375864320,1753764665289,-1000.0,0.000244,2]
[375864321,1753764665299,-1000.0,0.000244,2]
[375864322,1753764665308,-1000.0,0.000244,2]
[375864323,1753764665318,-845.78,0.000244,2]
[375864324,1753764665328,-151.814221,0.000244,7]
[375864325,1753764665338,-2787.39039994,0.000244,2]
[375864326,1753764665348,-192.98117,0.000244,7]
[375864327,1753764665359,-192.98117,0.000244,7]
[375864328,1753764665369,-174.176206,0.000244,7]
[375864329,1753764665379,-154.373696,0.00024402,14]
[375864330,1753764665389,-864.7894611,0.00024438,2]
[375864331,1753764665398,-289.0,0.0002445,10]
[375864332,1753764665408,-695.6,0.00024509,6]
[375864333,1753764665418,-155.0,0.00024644,2]
[375864334,1753764665427,-2001.0083313,0.0002465,2]
[375864335,1753764665436,-256.648826,0.00024657,7]
[375864336,1753764665445,-256.648826,0.00024657,7]
[375864337,1753764665455,-486.47,0.00024657,2]
[375864338,1753764665464,-151.0,0.00024657,7]
[375864339,1753764665473,-539.9,0.00024657,2]
[375864340,1753764665483,-151.367434,0.00024657,7]
[375864341,1753764665497,-3128.07,0.00024657,2]
[375864342,1753764665506,-1169.85,0.00024657,2]
[375864343,1753764665515,-492.68,0.00024657,2]
[375864344,1753764665524,-1149.81,0.00024657,2]
[375864345,1753764665533,-160.34903673,0.00024657,2]
[375864346,1753764665543,-460.0,0.00024657,2]
[375864347,1753764665552,-1909.47,0.00024657,2]
[375864348,1753764665561,-1316.19,0.00024657,2]
[375864349,1753764665571,-583.46,0.00024657,2]
[375864350,1753764665581,-537.89,0.00024657,2]
[375864351,1753764665591,-652.33,0.00024657,2]
[375864352,1753764665600,-1679.17,0.00024657,2]
[375864353,1753764665611,-557.66,0.00024657,2]
[375864354,1753764665620,-1048.64,0.00024657,2]
[375864355,1753764665630,-460.0,0.00024657,2]
[375864356,1753764665640,-504.22,0.00024657,2]
[375864357,1753764665649,-151.0,0.00024657,7]
[375864358,1753764665659,-1125.68,0.00024657,2]
[375864359,1753764665669,-1269.69,0.00024657,2]
[375864360,1753764665679,-1596.9,0.00024657,2]
[375864361,1753764665688,-151.0,0.00024657,7]
[375864362,1753764665698,-1093.2,0.00024657,2]
[375864363,1753764665707,-901.92,0.00024657,2]
[375864364,1753764665717,-460.0,0.00024657,2]
[375864365,1753764665726,-1425.95,0.00024657,2]
[375864366,1753764665739,-551.56,0.00024657,2]
[375864367,1753764665748,-4145.08,0.00024657,2]
[375864368,1753764665758,-561.7,0.00024657,2]
[375864369,1753764665766,-649.62,0.00024657,2]
[375864370,1753764665776,-241.03083807,0.00024658,2]
[375864371,1753764665788,-1026.075625,0.0002468,5]
[375864372,1753764665797,-1000.0,0.000247,5]
[375864373,1753764665806,-151.93948,0.000247,7]
[375864374,1753764665815,-151.0,0.000247,7]
[375864375,1753764665825,-500.0,0.00024718,2]
[375864376,1753764665835,-1000.0,0.0002472,5]
[375864377,1753764665844,-1000.0,0.0002474,5]
[375864378,1753764665854,-206.0,0.0002476,2]
[375864379,1753764665865,-1000.0,0.0002476,5]
[375864380,1753764665874,-1000.0,0.0002478,5]
[375864381,1753764665883,-3818.01072071,0.000248,2]
[375864382,1753764665892,-21687.28,0.000248,2]
[375864383,1753764665901,-1000.0,0.000248,5]
[375864384,1753764665911,-43854.81448522,0.0002485,15]
[375864385,1753764665921,-151.0,0.0002485,7]
[375864386,1753764665930,-151.0,0.0002485,7]
[375864387,1753764665939,-152.757135,0.0002485,7]
[375864388,1753764665950,-151.0,0.0002485,7]
[375864389,1753764665959,-151.0,0.0002485,7]
[375864390,1753764665968,-233.653696,0.0002485,7]
[375864391,1753764665978,-233.653696,0.0002485,7]
[375864392,1753764665990,-151.0,0.0002485,7]
[375864393,1753764665999,-198.22160857,0.0002488,2]
[375864394,1753764666009,-2359626.875126,0.0002488,2]
[375864395,1753764666018,-151.0,0.0002488,7]
[375864396,1753764666028,-151.0,0.0002488,7]
[375864397,1753764666038,-151.0,0.0002488,7]
[375864398,1753764666047,-180.427728,0.0002488,7]
[375864399,1753764666057,-180.427728,0.0002488,7]
[375864400,1753764666066,-151.0,0.0002488,7]
[375864401,1753764666075,-151.0,0.0002488,7]
[375864402,1753764666085,-233.653696,0.0002488,7]
[375864403,1753764666094,-233.653696,0.0002488,7]
[375864404,1753764666103,-151.0,0.0002488,7]
[375864405,1753764666112,-152.774066,0.0002488,7]
[375864406,1753764666121,-151.0,0.0002488,7]
[375864407,1753764666130,-151.0,0.0002488,7]
[375864408,1753764666140,-320.501262,0.0002488,7]
[375864409,1753764666149,-151.0,0.0002488,7]
[375864410,1753764666158,-320.501262,0.0002488,7]
[375864411,1753764666167,-256.648826,0.0002488,7]
[375864412,1753764666176,-256.648826,0.0002488,7]
[375864413,1753764666186,-151.0,0.0002488,7]
[375864414,1753764666195,-151.0,0.0002488,7]
[375864415,1753764666205,-151.0,0.0002488,7]
[375864416,1753764666214,-151.0,0.0002488,7]
[375864417,1753764666224,-230.579603,0.0002488,7]
[375864418,1753764666235,-230.579603,0.0002488,7]
[375864419,1753764666246,-151.0,0.0002488,7]
[375864420,1753764666394,-151.0,0.0002488,7]
[375864421,1753764666404,-151.0,0.0002488,7]
[375864422,1753764666414,-192.734262,0.0002488,7]
[375864423,1753764666423,-192.734262,0.0002488,7]
[375864424,1753764666433,-151.0,0.0002488,7]
[375864425,1753764666443,-151.0,0.0002488,7]
[375864426,1753764666452,-151.0,0.0002488,7]
[375864427,1753764666462,-151.0,0.0002488,7]
[375864428,1753764666472,-665.756305,0.0002488,7]
[375864429,1753764666482,-151.0,0.0002488,7]
[375864430,1753764666494,-665.756305,0.0002488,7]
[375864431,1753764666505,-207.39123,0.0002488,7]
[375864432,1753764666515,-192.98117,0.0002488,7]
[375864433,1753764666525,-151.0,0.0002488,7]
[375864434,1753764666534,-192.98117,0.0002488,7]
[375864435,1753764666543,-151.0,0.0002488,7]
[375864436,1753764666553,-174.176206,0.0002488,7]
[375864437,1753764666563,-2000.0,0.000249,2]
[375864438,1753764666573,-4489.58,0.000249,10]
[375864439,1753764666583,-2000.0,0.000249,2]
[375864440,1753764666592,-151.0,0.000249,7]
[375864441,1753764666602,-151.0,0.000249,7]
[375864442,1753764666611,-1500.0,0.000249,14]